bitfinex/quotes_BTCUSD_20250513
["timestamp","ask_amount","ask_price","bid_price","bid_amount"]
[1747128265315,0.69274169,103220.0,103210.0,0.66451321]
[1747128265656,0.66024169,103220.0,103210.0,0.66451321]
[1747128265833,0.66324169,103220.0,103210.0,0.66451321]
[1747128266443,0.41560839,103220.0,103210.0,0.66451321]
[1747128266658,0.66324169,103220.0,103210.0,0.66451321]
[1747128266863,0.56593229,103220.0,103210.0,0.66451321]
[1747128267275,0.4850372,103220.0,103210.0,0.66451321]
[1747128268121,0.64777541,103220.0,103210.0,0.66451321]
[1747128274876,0.64777541,103220.0,103210.0,0.68011321]
[1747128279092,0.64777541,103220.0,103210.0,0.01564844]
[1747128279301,0.74508481,103220.0,103210.0,0.01564844]
[1747128289552,0.3174459,103220.0,103210.0,0.03064844]
[1747128289775,0.3174459,103220.0,103210.0,0.23411699]
[1747128289988,0.3174459,103220.0,103210.0,0.03064844]
[1747128290199,0.30775814,103220.0,103210.0,0.03064844]
[1747128290623,0.47049635,103220.0,103210.0,0.03064844]
[1747128290837,0.54462013,103220.0,103210.0,0.03064844]
[1747128291798,0.74714013,103220.0,103210.0,0.03064844]
[1747128300047,0.90987834,103220.0,103210.0,0.01564844]
[1747128300269,0.90987834,103220.0,103210.0,0.03074844]
[1747128300389,0.74714013,103220.0,103210.0,0.03074844]
[1747128300610,0.58440192,103220.0,103210.0,0.03074844]
[1747128300819,0.30775814,103220.0,103210.0,0.03074844]
[1747128301032,0.51027814,103220.0,103210.0,0.03074844]
[1747128301435,0.50487814,103220.0,103210.0,0.03074844]
[1747128301986,0.30775814,103220.0,103210.0,0.03074844]
[1747128302298,0.50487814,103220.0,103210.0,0.03074844]
[1747128302456,0.52161264,103220.0,103210.0,0.03074844]
[1747128303362,0.68435085,103220.0,103210.0,0.03074844]
[1747128311702,0.48723085,103220.0,103210.0,0.03074844]
[1747128311929,0.68435085,103220.0,103210.0,0.03074844]
[1747128313504,0.50487814,103220.0,103210.0,0.03074844]
[1747128313710,0.66761635,103220.0,103210.0,0.03074844]
[1747128314270,0.50487814,103220.0,103210.0,0.03074844]
[1747128314493,0.66761635,103220.0,103210.0,0.03074844]
[1747128316128,0.47049635,103220.0,103210.0,0.03074844]
[1747128316327,0.32713366,103220.0,103210.0,0.24390579]
[1747128316530,0.35174825,103220.0,103210.0,0.04043742]
[1747128316735,0.50479889,103220.0,103210.0,0.03074844]
[1747128318528,0.34206068,103220.0,103210.0,0.03074844]
[1747128318731,0.50479889,103220.0,103210.0,0.03074844]
[1747128321976,0.50479889,103220.0,103210.0,0.01564844]
[1747128322586,0.6675371,103220.0,103210.0,4.844e-05]
[1747128323024,0.6838371,103220.0,103210.0,4.844e-05]
[1747128323223,0.69837795,103220.0,103210.0,4.844e-05]
[1747128324179,0.68207795,103220.0,103210.0,4.844e-05]
[1747128324804,0.71645974,103220.0,103210.0,0.01634844]
[1747128325026,0.71645974,103220.0,103210.0,0.03214844]
[1747128326163,0.31744609,103220.0,103210.0,0.03214844]
[1747128326603,0.30775824,103220.0,103210.0,0.03214844]
[1747128330266,0.30775824,103220.0,103210.0,0.43214844]
[1747128333159,0.30775824,103220.0,103210.0,0.03214844]
[1747128333783,0.30775824,103220.0,103210.0,0.43214844]
[1747128334635,0.36812298,103220.0,103210.0,0.43214844]
[1747128334845,0.30775824,103220.0,103210.0,0.43214844]
[1747128336245,0.30775824,103220.0,103210.0,0.44214844]
[1747128336780,0.30775824,103220.0,103210.0,0.04214844]
[1747128337206,0.30775824,103220.0,103210.0,0.44214844]
[1747128337411,0.40139403,103220.0,103210.0,0.44214844]
[1747128337770,0.32139403,103220.0,103210.0,0.44214844]
[1747128337971,0.22775824,103220.0,103210.0,0.44214844]
[1747128340194,0.22775824,103220.0,103210.0,0.04214844]
[1747128340761,0.22775824,103220.0,103210.0,0.44214844]
[1747128342239,0.22775824,103220.0,103210.0,0.45183742]
[1747128342472,0.22775824,103220.0,103210.0,0.64561709]
[1747128343656,0.22775824,103220.0,103210.0,0.24561709]
[1747128344167,0.22775824,103220.0,103210.0,0.64561709]
[1747128347443,0.22775824,103220.0,103210.0,0.24561709]
[1747128347850,0.22775824,103220.0,103210.0,0.64561709]
[1747128349044,0.39049645,103220.0,103210.0,0.64561709]
[1747128349481,0.39049645,103220.0,103210.0,0.65530597]
[1747128350316,0.39049645,103220.0,103210.0,0.66499476]
[1747128350968,0.39049645,103220.0,103210.0,0.26499476]
[1747128351510,0.39049645,103220.0,103210.0,0.66499476]
[1747128352067,0.22775824,103220.0,103210.0,0.66499476]
[1747128352880,0.22775824,103220.0,103210.0,0.64561709]
[1747128353078,0.32506764,103220.0,103210.0,0.64561709]
[1747128353458,0.48780585,103220.0,103210.0,0.44214844]
[1747128353649,0.48780585,103220.0,103210.0,0.64561709]
[1747128354440,0.48780585,103220.0,103210.0,0.24561709]
[1747128354796,0.48780585,103220.0,103210.0,0.64561709]
[1747128356062,0.48780585,103220.0,103210.0,0.65530597]
[1747128357897,0.39049645,103220.0,103210.0,0.65530597]
[1747128358100,0.39049645,103220.0,103210.0,0.25530597]
[1747128358533,0.22775824,103220.0,103210.0,0.65530597]
[1747128359784,0.22775824,103220.0,103210.0,0.67468336]
[1747128359991,0.22775824,103220.0,103210.0,0.66499476]
[1747128360411,0.007,103220.0,103210.0,0.68437168]
[1747128360824,0.007,103220.0,103210.0,1.27495741]
[1747128361052,0.007,103220.0,103210.0,1.37226681]
[1747128361434,0.003,103220.0,103210.0,1.37226681]
[1747128362146,0.23244712,103250.0,103240.0,0.25609522]
[1747128362346,0.32975652,103250.0,103240.0,0.26578091]
[1747128362709,0.11667882,103250.0,103240.0,0.27546642]
[1747128362961,0.11667873,103250.0,103240.0,0.67546642]
[1747128363117,0.10699397,103250.0,103240.0,0.67546642]
[1747128363325,0.11667882,103250.0,103240.0,0.67546642]
[1747128363920,0.11967873,103250.0,103240.0,0.67546642]
[1747128364523,0.33475331,103250.0,103240.0,0.66578091]
[1747128364728,0.13136358,103250.0,103240.0,0.67546642]
[1747128364984,0.14104862,103250.0,103240.0,0.67546642]
[1747128365192,0.13804862,103250.0,103240.0,0.67546642]
[1747128365668,0.14004862,103250.0,103240.0,0.67546642]
[1747128366174,0.12067873,103250.0,103240.0,0.27546642]
[1747128366585,0.13036367,103250.0,103240.0,0.67546642]
[1747128367162,0.12067873,103250.0,103240.0,0.67546642]
[1747128367972,0.13036367,103250.0,103240.0,0.67546642]
[1747128368179,0.12067873,103250.0,103240.0,0.67546642]
[1747128368432,0.13036358,103250.0,103240.0,0.67546642]
[1747128369048,0.1013094,103250.0,103240.0,0.67546642]
[1747128369287,0.01368438,103250.0,103240.0,1.20822642]
[1747128369490,0.01368457,103250.0,103240.0,1.20822642]
[1747128369716,0.004,103250.0,103240.0,1.20822642]
[1747128369927,0.01368447,103250.0,103240.0,1.20822642]
[1747128372487,0.02336913,103250.0,103240.0,1.20822642]
[1747128372968,0.03305398,103250.0,103240.0,1.20822642]
[1747128373193,0.21707373,103250.0,103240.0,1.20822642]
[1747128373408,0.02336913,103250.0,103240.0,1.20822642]
[1747128376381,0.01368447,103250.0,103240.0,1.20822642]
[1747128376718,0.02336913,103250.0,103240.0,1.20822642]
[1747128377038,0.01368447,103250.0,103240.0,1.20822642]
[1747128377237,0.02336913,103250.0,103240.0,1.20822642]
[1747128377498,0.01368447,103250.0,103240.0,1.20822642]
[1747128378099,0.02336913,103250.0,103240.0,1.20822642]
[1747128378494,0.01368447,103250.0,103240.0,1.20822642]
[1747128379700,0.01368457,103250.0,103240.0,1.20822642]
[1747128380287,0.004,103250.0,103240.0,1.20822642]
[1747128380509,0.01368438,103250.0,103240.0,1.37096463]
[1747128380701,0.01368438,103250.0,103240.0,1.54370284]
[1747128380702,0.004,103250.0,103240.0,1.54370284]
[1747128381103,0.004,103250.0,103240.0,1.64101224]
[1747128381310,0.002,103250.0,103240.0,1.64101224]
[1747128381578,0.002,103250.0,103240.0,1.44825224]
[1747128381795,0.002,103250.0,103240.0,1.83525224]
[1747128382011,0.2677,103250.0,103240.0,1.83525224]
[1747128382416,0.2657,103250.0,103240.0,1.83525224]
[1747128382763,0.2657,103250.0,103240.0,1.50977582]
[1747128382963,0.2657,103250.0,103240.0,1.83525224]
[1747128383372,0.2657,103250.0,103240.0,1.83825224]
[1747128384027,0.2657,103250.0,103240.0,1.84125224]
[1747128384394,0.01936529,103270.0,103260.0,0.60583757]
[1747128384828,0.24296117,103280.0,103270.0,0.22303312]
[1747128385041,0.14662158,103280.0,103270.0,0.23271591]
[1747128385259,0.1563038,103280.0,103270.0,0.6588986]
[1747128385470,0.15635222,103280.0,103270.0,0.6588986]
[1747128385709,0.15635222,103280.0,103270.0,0.6754986]
[1747128385919,0.15835222,103280.0,103270.0,0.6754986]
[1747128386125,0.13428322,103280.0,103270.0,0.67093399]
[1747128386542,0.12460118,103280.0,103270.0,0.67093399]
[1747128386760,0.13428312,103280.0,103270.0,0.67093399]
[1747128386975,0.01761002,103280.0,103270.0,0.67093399]
[1747128387183,0.01761002,103280.0,103270.0,1.42425793]
[1747128387408,0.01761002,103280.0,103270.0,1.44352929]
[1747128387658,0.01761002,103280.0,103270.0,1.37793222]
[1747128387895,0.01961002,103280.0,103270.0,1.37793222]
[1747128388111,0.01961002,103280.0,103270.0,1.39247307]
[1747128388338,0.01961002,103280.0,103270.0,1.85700059]
[1747128388567,0.01961002,103280.0,103270.0,1.39247307]
[1747128388792,0.01561002,103280.0,103270.0,1.79369504]
[1747128389019,0.01561002,103280.0,103270.0,1.79469504]
[1747128389238,0.01561002,103280.0,103270.0,1.79369504]
[1747128389456,0.01561002,103280.0,103270.0,1.79769504]
[1747128390134,0.01561002,103280.0,103270.0,1.79969504]
[1747128390537,0.01561002,103280.0,103270.0,1.79769504]
[1747128390971,0.01561002,103280.0,103270.0,1.80269504]
[1747128391682,0.01561002,103280.0,103270.0,1.78815419]
[1747128395175,0.01561002,103280.0,103270.0,1.77385222]
[1747128396251,0.06561002,103280.0,103270.0,1.77385222]
[1747128397835,0.06561002,103280.0,103270.0,1.58017222]
[1747128398089,0.06561002,103280.0,103270.0,1.77401222]
[1747128398343,0.06561002,103280.0,103270.0,1.77465222]
[1747128398621,0.06561002,103280.0,103270.0,1.38693222]
[1747128398867,0.07529168,103280.0,103270.0,0.64602]
[1747128399098,0.3103228,103280.0,103270.0,0.019]
[1747128399316,0.3103228,103280.0,103270.0,0.015]
[1747128399560,0.65507058,103280.0,103270.0,0.015]
[1747128399812,0.65507058,103280.0,103270.0,0.019]
[1747128400068,0.4076322,103280.0,103270.0,0.20366708]
[1747128400309,0.4076322,103280.0,103270.0,0.013]
[1747128400310,0.39795007,103280.0,103270.0,0.013]
[1747128400515,0.4580763,103280.0,103270.0,0.013]
[1747128400728,0.4580763,103280.0,103270.0,0.20366708]
[1747128400729,0.39795007,103280.0,103270.0,0.20366708]
[1747128400945,0.39795007,103280.0,103270.0,0.01]
[1747128401128,0.39026775,103280.0,103270.0,0.01]
[1747128402141,0.37626775,103280.0,103270.0,0.01]
[1747128402571,0.39216775,103280.0,103270.0,0.01]
[1747128403061,0.47549137,103280.0,103270.0,0.01]
[1747128403285,0.36056775,103280.0,103270.0,0.21429646]
[1747128403501,0.06961002,103280.0,103270.0,0.50543717]
[1747128403681,0.06961002,103280.0,103270.0,0.71659717]
[1747128403682,0.08897344,103280.0,103270.0,0.71659717]
[1747128403921,0.07929159,103280.0,103270.0,0.46915879]
[1747128404138,0.19368584,103260.0,103240.0,0.04204907]
[1747128404353,0.22275906,103250.0,103240.0,0.40412336]
[1747128404563,0.01936923,103250.0,103240.0,0.76388934]
[1747128404785,0.31036354,103260.0,103250.0,0.1937046]
[1747128405002,0.32085491,103280.0,103260.0,0.21305385]
[1747128405217,0.00968251,103270.0,103260.0,0.67784832]
[1747128405431,0.0290479,103270.0,103260.0,0.44009395]
[1747128405634,0.22271498,103270.0,103260.0,0.41400994]
[1747128405845,0.23239805,103270.0,103260.0,0.39841003]
[1747128406060,0.23239795,103270.0,103260.0,0.39841003]
[1747128406274,0.26125835,103280.0,103260.0,0.51066005]
[1747128406482,0.28830436,103280.0,103270.0,0.02488335]
[1747128406693,0.30766825,103280.0,103270.0,0.0152]
[1747128406868,0.29798593,103280.0,103270.0,0.0152]
[1747128407324,0.30766834,103280.0,103270.0,0.0152]
[1747128407529,0.19366708,103270.0,103260.0,1.06648359]
[1747128407716,0.29798593,103280.0,103270.0,0.00968335]
[1747128407920,0.19366708,103270.0,103260.0,0.78999394]
[1747128408127,0.2227161,103270.0,103260.0,0.53524]
[1747128408334,0.2227161,103270.0,103260.0,0.93524]
[1747128408539,0.21303331,103270.0,103260.0,0.93524]
[1747128408986,0.21303331,103270.0,103260.0,0.34]
[1747128408987,0.30065974,103270.0,103260.0,0.34]
[1747128409515,0.30065974,103270.0,103260.0,0.341]
[1747128410127,0.38944156,103270.0,103260.0,0.342]
[1747128410367,0.30065974,103270.0,103260.0,0.002]
[1747128410572,0.31695974,103270.0,103260.0,0.002]
[1747128411427,0.33225974,103270.0,103260.0,0.002]
[1747128412637,0.33225974,103270.0,103260.0,0.001]
[1747128412862,0.22273719,103260.0,103250.0,0.53392]
[1747128413016,0.2324212,103260.0,103250.0,0.53392]
[1747128413223,0.24210483,103260.0,103250.0,0.53392]
[1747128413617,0.23242205,103260.0,103250.0,0.53392]
[1747128414314,0.22273776,103260.0,103250.0,0.53392]
[1747128415466,0.22273776,103260.0,103250.0,0.53492]
[1747128416074,0.21303237,103270.0,103260.0,0.21976994]
[1747128416301,0.23239813,103270.0,103260.0,0.24445423]
[1747128416520,0.28454347,103270.0,103260.0,0.23477013]
[1747128416725,0.28454337,103270.0,103260.0,0.24445432]
[1747128416938,0.28454337,103270.0,103260.0,0.04108429]
[1747128417153,0.28454337,103270.0,103260.0,0.05076848]
[1747128417370,0.28454337,103270.0,103260.0,0.24445432]
[1747128417371,0.22371516,103270.0,103260.0,0.24445432]
[1747128417589,0.22371516,103270.0,103260.0,0.25413833]
[1747128417797,0.19466708,103270.0,103260.0,0.25413833]
[1747128418005,0.21403256,103270.0,103260.0,0.25413842]
[1747128418356,0.23439889,103270.0,103260.0,0.0164]
[1747128418559,0.19368584,103260.0,103250.0,1.43733278]
[1747128418767,0.19368584,103260.0,103250.0,1.44701735]
[1747128418951,0.27996575,103270.0,103250.0,1.45670182]
[1747128419185,0.27996575,103270.0,103260.0,0.00968419]
[1747128419375,0.27996575,103270.0,103260.0,0.00968429]
[1747128419376,0.27896575,103270.0,103260.0,0.00968429]
[1747128419625,0.19368584,103260.0,103250.0,1.42764802]
[1747128419776,0.19368584,103260.0,103250.0,1.1898944]
[1747128419984,0.20336928,103260.0,103250.0,1.1898944]
[1747128420238,0.20336928,103260.0,103250.0,0.80057906]
[1747128420641,0.20336928,103260.0,103250.0,0.7908944]
[1747128420856,0.20336928,103260.0,103250.0,1.20057906]
[1747128421264,0.20336928,103260.0,103250.0,1.1908944]
[1747128421475,0.20336928,103260.0,103250.0,1.20057906]
[1747128421919,0.19368584,103260.0,103250.0,1.45770201]
[1747128422341,0.19368584,103260.0,103250.0,1.44801744]
[1747128422544,0.20336938,103260.0,103250.0,1.44801744]
[1747128422748,0.19368584,103260.0,103250.0,1.45770201]
[1747128422970,0.21303274,103270.0,103260.0,0.19368584]
[1747128423201,0.32970856,103270.0,103260.0,0.01634646]
[1747128423413,0.32970847,103270.0,103260.0,0.01634646]
[1747128423625,0.32970837,103270.0,103260.0,0.01634646]
[1747128423761,0.33939172,103270.0,103260.0,0.01634646]
[1747128424173,0.32970837,103270.0,103260.0,0.01634646]
[1747128424390,0.33939172,103270.0,103260.0,0.01634646]
[1747128424599,0.33070837,103270.0,103260.0,0.00094646]
[1747128425009,0.001,103270.0,103260.0,1.02787487]
[1747128425218,0.002,103270.0,103260.0,1.29373433]
[1747128425427,0.002,103270.0,103260.0,1.04629595]
[1747128425667,0.002,103270.0,103260.0,1.44629595]
[1747128426291,0.001,103270.0,103260.0,1.69373433]
[1747128426511,0.001,103270.0,103260.0,1.69473433]
[1747128426947,0.001,103270.0,103260.0,1.69373433]
[1747128427347,0.06561002,103280.0,103270.0,0.587916]
[1747128427548,0.06561002,103280.0,103270.0,1.04471438]
[1747128428010,0.06561002,103280.0,103270.0,1.44471438]
[1747128429183,0.06561002,103280.0,103270.0,1.44571438]
[1747128430918,0.06561002,103280.0,103270.0,1.54302378]
[1747128432143,0.06561002,103280.0,103270.0,1.54202378]
[1747128432564,0.06561002,103280.0,103270.0,1.54902378]
[1747128432946,0.06561002,103280.0,103270.0,1.56048743]
[1747128437672,0.06561002,103280.0,103270.0,1.31304905]
[1747128437889,0.06561002,103280.0,103270.0,1.56048743]
[1747128448498,0.06561002,103280.0,103270.0,1.97880743]
[1747128451452,0.06561002,103280.0,103270.0,1.99334828]
[1747128453681,0.06561002,103280.0,103270.0,2.00776434]
[1747128457503,0.06561002,103280.0,103270.0,1.99322349]
[1747128457945,0.06561002,103280.0,103270.0,1.79986349]
[1747128458150,0.06561002,103280.0,103270.0,2.18458349]
[1747128459602,0.06561002,103280.0,103270.0,1.97780743]
[1747128459815,0.06561002,103280.0,103270.0,1.70165803]
[1747128460039,0.06561002,103280.0,103270.0,2.04165803]
[1747128461151,0.09661002,103280.0,103270.0,2.04165803]
[1747128461368,0.06561002,103280.0,103270.0,2.04165803]
[1747128462903,0.06561002,103280.0,103270.0,2.16996743]
[1747128463929,0.06561002,103280.0,103270.0,2.14320378]
[1747128464145,0.06561002,103280.0,103270.0,2.15920378]
[1747128465998,0.06561002,103280.0,103270.0,2.17069491]
[1747128467413,0.06561002,103280.0,103270.0,1.78597491]
[1747128467649,0.06561002,103280.0,103270.0,2.13895491]
[1747128467868,0.09841002,103280.0,103270.0,1.75427491]
[1747128468069,0.09841002,103280.0,103270.0,1.79420713]
[1747128468277,0.09841002,103280.0,103270.0,2.04164551]
[1747128468661,0.08211002,103280.0,103270.0,2.04164551]
[1747128469087,0.08211002,103280.0,103270.0,2.03015438]
[1747128471040,0.08211002,103280.0,103270.0,1.61183438]
[1747128471669,0.06561002,103280.0,103270.0,1.61183438]
[1747128472225,0.06561002,103280.0,103270.0,1.62743438]
[1747128472867,0.06561002,103280.0,103270.0,1.61183438]
[1747128473597,0.06561002,103280.0,103270.0,1.62783438]
[1747128480057,0.06561002,103280.0,103270.0,1.64323438]
[1747128483311,0.06561002,103280.0,103270.0,1.74054378]
[1747128483626,0.06561002,103280.0,103270.0,1.34054378]
[1747128486383,0.06561002,103280.0,103270.0,1.35508463]
[1747128486989,0.06561002,103280.0,103270.0,1.36961559]
[1747128489051,0.06561002,103280.0,103270.0,1.62205397]
[1747128489219,0.06561002,103280.0,103270.0,1.37461559]
[1747128490266,0.00073733,103300.0,103290.0,0.58721373]
[1747128490437,0.00073733,103300.0,103290.0,1.59567989]
[1747128492421,0.00073733,103300.0,103290.0,1.60067989]
[1747128493277,0.00073733,103300.0,103290.0,1.60467989]
[1747128493763,0.00073733,103300.0,103290.0,1.60463989]
[1747128498929,0.00073733,103300.0,103290.0,2.02287989]
[1747128503919,0.00073733,103300.0,103290.0,1.77544151]
[1747128504595,0.00073733,103300.0,103290.0,1.28942228]
[1747128504800,0.00073733,103300.0,103290.0,1.72894066]
[1747128505123,0.00073733,103300.0,103290.0,1.74505554]
[1747128505329,0.00073733,103300.0,103290.0,1.65997922]
[1747128505533,0.00073733,103300.0,103290.0,1.65097922]
[1747128505758,0.00073733,103300.0,103290.0,1.65297922]
[1747128505956,0.00073733,103300.0,103290.0,1.65497922]
[1747128506504,0.00073733,103300.0,103290.0,1.25429922]
[1747128506713,0.01613733,103300.0,103290.0,1.63857922]
[1747128507371,0.01613733,103300.0,103290.0,1.72365493]
[1747128507809,0.01613733,103300.0,103290.0,1.47621716]
[1747128508036,0.01613733,103300.0,103290.0,1.72365493]
[1747128508252,0.00073733,103300.0,103290.0,1.72365493]
[1747128508467,0.00073733,103300.0,103290.0,1.73975493]
[1747128508676,0.00073733,103300.0,103290.0,1.75565493]
[1747128509542,0.00073733,103300.0,103290.0,2.0030927]
[1747128512586,0.00073733,103300.0,103290.0,1.75565493]
[1747128513883,0.00073733,103300.0,103290.0,1.37137493]
[1747128514067,0.00073733,103300.0,103290.0,1.75541493]
[1747128514937,0.00073733,103300.0,103290.0,2.0028527]
[1747128515345,0.00073733,103300.0,103290.0,1.75541493]
[1747128517187,0.00073733,103300.0,103290.0,2.0028527]
[1747128518283,0.00073733,103300.0,103290.0,1.37137493]
[1747128518491,0.00073733,103300.0,103290.0,1.75537493]
[1747128519360,0.00073733,103300.0,103290.0,1.50793716]
[1747128519570,0.00073733,103300.0,103290.0,1.75537493]
[1747128522512,0.00073733,103300.0,103290.0,1.53298717]
[1747128522701,0.00073733,103300.0,103290.0,1.72661675]
[1747128522913,0.00073733,103300.0,103290.0,1.75566005]
[1747128524628,0.00073733,103300.0,103290.0,2.00309782]
[1747128525907,0.00073733,103300.0,103290.0,1.61909782]
[1747128526116,0.00073733,103300.0,103290.0,2.00301782]
[1747128527076,0.00073733,103300.0,103290.0,1.75558005]
[1747128527484,0.00073733,103300.0,103290.0,1.73968005]
[1747128527700,0.00073733,103300.0,103290.0,1.28422228]
[1747128527919,0.00073733,103300.0,103290.0,1.13614228]
[1747128527920,0.03173733,103300.0,103290.0,1.13614228]
[1747128528140,0.03173733,103300.0,103290.0,1.47614228]
[1747128528377,0.03173733,103300.0,103290.0,1.37883288]
[1747128529396,0.03173733,103300.0,103290.0,1.54121626]
[1747128530584,0.03173733,103300.0,103290.0,1.37883288]
[1747128530985,0.03173733,103300.0,103290.0,1.54121626]
[1747128532382,0.00073733,103300.0,103290.0,1.53921626]
[1747128533242,0.00073733,103300.0,103290.0,1.53821626]
[1747128533644,0.00073733,103300.0,103290.0,1.53921626]
[1747128533869,0.01613733,103300.0,103290.0,1.53921626]
[1747128534062,0.03203733,103300.0,103290.0,1.53921626]
[1747128534273,0.03203733,103300.0,103290.0,1.37683288]
[1747128535080,0.23532796,103300.0,103290.0,1.01707206]
[1747128535316,0.11367327,103300.0,103290.0,1.02675297]
[1747128535581,0.31696418,103300.0,103290.0,1.37643379]
[1747128535782,0.12335334,103300.0,103290.0,1.37643379]
[1747128536109,0.31696418,103300.0,103290.0,1.36675297]
[1747128536308,0.32664444,103300.0,103290.0,1.37643379]
[1747128536513,0.49870836,103300.0,103290.0,0.75667297]
[1747128536723,0.48902782,103300.0,103290.0,0.76635379]
[1747128536932,0.49870826,103300.0,103290.0,0.75667297]
[1747128537139,0.48902782,103300.0,103290.0,0.76535379]
[1747128537351,0.32664509,103300.0,103290.0,0.73531096]
[1747128537567,0.31696512,103300.0,103290.0,0.74499225]
[1747128537778,0.31696512,103300.0,103290.0,0.76435435]
[1747128537986,0.31696512,103300.0,103290.0,0.76435445]
[1747128538195,0.32664566,103300.0,103290.0,0.76435445]
[1747128538607,0.31696512,103300.0,103290.0,0.76435435]
[1747128538822,0.31796512,103300.0,103290.0,0.76435435]
[1747128539028,0.32764566,103300.0,103290.0,0.74499225]
[1747128539254,0.65312307,103300.0,103290.0,0.38562958]
[1747128539495,0.65312307,103300.0,103290.0,0.39531105]
[1747128539705,0.65312307,103300.0,103290.0,0.40499234]
[1747128540183,0.65312307,103300.0,103290.0,0.41467353]
[1747128540383,0.13034673,103300.0,103290.0,0.43403545]
[1747128540592,0.25568865,103300.0,103290.0,0.43403554]
[1747128540802,0.25568856,103300.0,103290.0,0.43403489]
[1747128541491,0.24600821,103300.0,103290.0,0.43403489]
[1747128541715,0.03303733,103300.0,103290.0,0.24203489]
[1747128541881,0.02681702,103300.0,103290.0,0.43387489]
[1747128542088,0.0364969,103300.0,103290.0,0.43387489]
[1747128542436,0.04617697,103300.0,103290.0,0.43387489]
[1747128542868,0.06167697,103300.0,103290.0,0.43387489]
[1747128543240,0.0519969,103300.0,103290.0,0.43387489]
[1747128543448,0.06167697,103300.0,103290.0,0.43387489]
[1747128543868,0.05644697,103300.0,103290.0,0.43387489]
[1747128544079,0.04094697,103300.0,103290.0,0.43387489]
[1747128544287,0.04094687,103300.0,103290.0,0.43387489]
[1747128545316,0.001,103300.0,103290.0,0.78387489]
[1747128545525,0.001,103300.0,103290.0,0.81597489]
[1747128554629,0.001,103300.0,103290.0,0.59203489]
[1747128554831,0.001,103300.0,103290.0,0.78379489]
[1747128556726,0.001,103300.0,103290.0,0.97559489]
[1747128559024,0.001,103300.0,103290.0,1.00609489]
[1747128559414,0.001,103300.0,103290.0,1.16847935]
[1747128560507,0.001,103300.0,103290.0,1.00609489]
[1747128560709,0.001,103300.0,103290.0,1.16847935]
[1747128560927,0.001,103300.0,103290.0,1.26578875]
[1747128561156,0.001,103300.0,103290.0,1.26678875]
[1747128561364,0.001,103300.0,103290.0,1.35181716]
[1747128561573,0.76961296,103320.0,103310.0,0.22262978]
[1747128561712,0.77009689,103320.0,103310.0,0.22262978]
[1747128562966,0.77209689,103320.0,103310.0,0.22262978]
[1747128564081,0.78177546,103320.0,103310.0,0.22262978]
[1747128564723,0.77209679,103320.0,103310.0,0.22262978]
[1747128565334,0.78177527,103320.0,103310.0,0.22262978]
[1747128567131,1.07265878,103320.0,103310.0,0.21295084]
[1747128567337,1.0533023,103320.0,103310.0,0.22262997]
[1747128567536,1.0533023,103320.0,103310.0,0.21295102]
[1747128567750,1.0533023,103320.0,103310.0,0.22263025]
[1747128567954,1.0533023,103320.0,103310.0,0.23230938]
[1747128568569,1.0533023,103320.0,103310.0,0.22263034]
[1747128568774,1.0533023,103320.0,103310.0,0.23230957]
[1747128568978,1.30071517,103320.0,103310.0,0.22263034]
[1747128569191,1.29103679,103320.0,103310.0,0.22263034]
[1747128569444,1.29103679,103320.0,103310.0,0.23230957]
[1747128569653,1.04362392,103320.0,103310.0,0.23230957]
[1747128569978,1.04362392,103320.0,103310.0,0.24198823]
[1747128570595,0.94631452,103320.0,103310.0,0.24198823]
[1747128574421,0.24691452,103320.0,103310.0,0.24198823]
[1747128577591,0.24691452,103320.0,103310.0,0.23230919]
[1747128577819,0.24691452,103320.0,103300.0,0.72539378]
[1747128577820,0.00967913,103310.0,103300.0,0.72539378]
[1747128578027,0.00967913,103310.0,103300.0,0.92663432]
[1747128578028,0.47004321,103310.0,103300.0,0.92663432]
[1747128578242,0.66796448,103310.0,103300.0,0.1918]
[1747128578457,0.23519138,103300.0,103290.0,0.20331096]
[1747128578670,0.00968119,103290.0,103280.0,1.05625479]
[1747128578882,0.22551084,103300.0,103290.0,0.22267353]
[1747128578883,0.23519138,103300.0,103290.0,0.22267353]
[1747128579094,0.24487164,103300.0,103290.0,0.21299243]
[1747128579276,0.29219521,103300.0,103290.0,0.22267372]
[1747128579539,0.29219521,103300.0,103290.0,0.21299243]
[1747128579746,0.29219521,103300.0,103290.0,0.20331105]
[1747128580126,0.28251495,103300.0,103290.0,0.20331105]
[1747128580347,0.28251495,103300.0,103290.0,0.00968147]
[1747128580555,0.28251495,103300.0,103280.0,0.19356]
[1747128580556,0.23361068,103290.0,103280.0,0.19356]
[1747128580802,0.56295029,103290.0,103280.0,0.19356]
[1747128581008,0.32521871,103290.0,103280.0,0.20333074]
[1747128581206,0.03872749,103280.0,103270.0,0.43395841]
[1747128581415,0.01936342,103280.0,103270.0,0.43395841]
[1747128581621,0.01936342,103280.0,103270.0,0.24239841]
[1747128581863,0.31553761,103290.0,103270.0,0.22303237]
[1747128582070,0.20827982,103290.0,103280.0,0.22269445]
[1747128582245,0.31998266,103290.0,103280.0,0.22469445]
[1747128582455,0.32966413,103290.0,103280.0,0.22469445]
[1747128582651,0.31998266,103290.0,103280.0,0.22269445]
[1747128583314,0.12635308,103290.0,103280.0,0.22269445]
[1747128583518,0.31998266,103290.0,103280.0,0.22269445]
[1747128584136,0.32966413,103290.0,103280.0,0.22269445]
[1747128584345,0.41362712,103290.0,103280.0,0.22269445]
[1747128584549,0.41362712,103290.0,103280.0,0.22269463]
[1747128584751,0.41362712,103290.0,103280.0,0.23237639]
[1747128584930,0.21031607,103290.0,103280.0,0.23237639]
[1747128585288,0.21031607,103290.0,103280.0,0.24777639]
[1747128585687,0.21031607,103290.0,103280.0,0.23237639]
[1747128586142,0.21031607,103290.0,103280.0,0.24747639]
[1747128586466,0.20063469,103290.0,103280.0,0.24747639]
[1747128587003,0.20063469,103290.0,103280.0,0.23237639]
[1747128588591,0.1166717,103290.0,103280.0,0.23237639]
[1747128589217,0.11667113,103290.0,103280.0,0.23237639]
[1747128589569,0.42745365,103300.0,103290.0,0.21299188]
[1747128589769,0.52476305,103300.0,103290.0,0.21299206]
[1747128590046,0.51508289,103300.0,103290.0,0.20331087]
[1747128590403,0.51508289,103300.0,103290.0,0.19362958]
[1747128590618,0.50540245,103300.0,103290.0,0.20331096]
[1747128591036,0.58525101,103300.0,103290.0,0.20331096]
[1747128591256,0.58525101,103300.0,103290.0,0.20331105]
[1747128591457,0.00968129,103290.0,103280.0,0.21301203]
[1747128591765,0.0096811,103290.0,103280.0,0.21301203]
[1747128591995,0.01936229,103290.0,103280.0,0.21301203]
[1747128592478,0.0193622,103290.0,103280.0,0.21301203]
[1747128592684,0.00968072,103290.0,103280.0,0.22269369]
[1747128592889,0.01936154,103290.0,103280.0,0.25449369]
[1747128593511,0.0895038,103290.0,103280.0,0.25449369]
[1747128593713,0.02904255,103290.0,103280.0,0.25449369]
[1747128593863,0.03872365,103290.0,103280.0,0.25449369]
[1747128594480,0.04840494,103290.0,103280.0,0.23859369]
[1747128594681,0.03872365,103290.0,103280.0,0.23859369]